fUST/lending_fUST_20250823
["ID","MTS","AMOUNT","RATE_DAILY","PERIOD"]
[380877122,1755883759728,-151.0,0.00026983,2]
[380877123,1755883759752,-500.0,0.00026983,2]
[380877124,1755883759775,-151.0,0.00026983,2]
[380877125,1755883759800,-151.0,0.00026983,2]
[380877126,1755883759824,-152.08662754,0.00026983,2]
[380877127,1755883759850,-151.0,0.00026983,2]
[380877128,1755883759875,-246.18508065,0.00026983,2]
[380877129,1755883759899,-151.55192868,0.00026983,2]
[380877130,1755883759927,-151.0,0.00026983,2]
[380877131,1755883759951,-151.0,0.00026983,2]
[380877132,1755883759975,-500.0,0.00026983,2]
[380877133,1755883760072,-151.0,0.00026983,2]
[380877134,1755883760096,-151.50781124,0.00026983,2]
[380877135,1755883760120,-151.31787865,0.00026983,2]
[380877136,1755883760146,-151.0049699,0.00026983,2]
[380877137,1755883760171,-151.27193599,0.00026983,2]
[380877138,1755883760194,-500.0,0.00026983,2]
[380877139,1755883760218,-500.0,0.00026983,2]
[380877140,1755883760242,-151.0,0.00026983,2]
[380877141,1755883760265,-500.0,0.00026983,2]
[380877142,1755883760288,-229.02868355,0.00026983,2]
[380877143,1755883760311,-151.0,0.00026983,2]
[380877144,1755883760334,-151.0,0.00026983,2]
[380877145,1755883760358,-176.03762668,0.00026983,2]
[380877146,1755883760381,-151.0,0.00026983,2]
[380877147,1755883760406,-500.0,0.00026983,2]
[380877148,1755883760432,-500.0,0.00026983,2]
[380877149,1755883760458,-151.0,0.00026984,7]
[380877150,1755883760487,-151.0,0.00026984,7]
[380877151,1755883760510,-151.0,0.00026984,7]
[380877152,1755883760535,-151.0,0.00026984,7]
[380877153,1755883760562,-151.0,0.00026984,7]
[380877154,1755883760585,-151.0,0.00026984,7]
[380877155,1755883760609,-151.0,0.00026984,7]
[380877156,1755883760633,-151.0,0.00026984,7]
[380877157,1755883760657,-166.537579,0.00026984,7]
[380877158,1755883760684,-166.537579,0.00026984,7]
[380877159,1755883760709,-166.537579,0.00026984,7]
[380877160,1755883760734,-166.537579,0.00026984,7]
[380877161,1755883760757,-254.818577,0.00026984,7]
[380877162,1755883760781,-151.0,0.00026984,7]
[380877163,1755883760805,-151.0,0.00026984,7]
[380877164,1755883760829,-178.254462,0.00026984,7]
[380877165,1755883760852,-151.0,0.00026984,7]
[380877166,1755883760876,-151.0,0.00026984,7]
[380877167,1755883760901,-151.0,0.00026984,7]
[380877168,1755883760932,-178.254462,0.00026984,7]
[380877169,1755883760959,-151.0,0.00026984,7]
[380877170,1755883760986,-178.254462,0.00026984,7]
[380877171,1755883761081,-178.254462,0.00026984,7]
[380877172,1755883761107,-151.0,0.00026984,7]
[380877173,1755883761132,-151.0,0.00026984,7]
[380877174,1755883761156,-151.0,0.00026984,7]
[380877175,1755883761181,-151.743428,0.00026984,7]
[380877176,1755883761205,-151.0,0.00026984,7]
[380877177,1755883761229,-207.604508,0.00026984,7]
[380877178,1755883761253,-151.0,0.00026984,7]
[380877179,1755883761277,-207.604508,0.00026984,7]
[380877180,1755883761302,-151.0,0.00026984,7]
[380877181,1755883761325,-207.604508,0.00026984,7]
[380877182,1755883761349,-207.604508,0.00026984,7]
[380877183,1755883761372,-151.0,0.00026984,7]
[380877184,1755883761396,-151.0,0.00026984,7]
[380877185,1755883761421,-151.0,0.00026984,7]
[380877186,1755883761446,-151.0,0.00026984,7]
[380877187,1755883761474,-151.0,0.00026984,7]
[380877188,1755883761503,-151.0,0.00026984,7]
[380877189,1755883761527,-151.0,0.00026984,7]
[380877190,1755883761555,-2000.0,0.00026994,2]
[380877191,1755883761579,-3000.0,0.00027,2]
[380877192,1755883761604,-151.0,0.00027,16]
[380877193,1755883761629,-151.0,0.00027,16]
[380877194,1755883761654,-151.0,0.00027,10]
[380877195,1755883761679,-151.0,0.00027,17]
[380877196,1755883761705,-151.0,0.00027,11]
[380877197,1755883761729,-151.0,0.00027,19]
[380877198,1755883761754,-151.0,0.00027,18]
[380877199,1755883761779,-3000.0,0.0002701,2]
[380877200,1755883761803,-3000.0,0.0002702,2]
[380877201,1755883761828,-1903.96,0.0002702,3]
[380877202,1755883761853,-951.98,0.0002702,3]
[380877203,1755883761878,-475.99,0.0002702,3]
[380877204,1755883761902,-238.0,0.0002702,3]
[380877205,1755883761928,-714.02,0.0002702,3]
[380877206,1755883761952,-3000.0,0.0002703,2]
[380877207,1755883761976,-3000.0,0.0002704,2]
[380877208,1755883762066,-151.0,0.0002704,2]
[380877209,1755883762091,-152.38757461,0.0002704,2]
[380877210,1755883762116,-151.0,0.0002704,2]
[380877211,1755883762141,-151.0,0.0002704,2]
[380877212,1755883762167,-151.0,0.0002704,2]
[380877213,1755883762191,-151.0,0.0002704,2]
[380877214,1755883762218,-151.02367489,0.0002704,2]
[380877215,1755883762241,-151.00084181,0.0002704,2]
[380877216,1755883762266,-151.0,0.0002704,7]
[380877217,1755883762290,-151.0,0.0002704,7]
[380877218,1755883762314,-201.555681,0.0002704,7]
[380877219,1755883762338,-151.356198,0.0002704,7]
[380877220,1755883762362,-151.0,0.0002704,7]
[380877221,1755883762391,-151.0,0.0002704,7]
[380877222,1755883762417,-151.0,0.0002704,7]
[380877223,1755883762441,-151.0,0.0002704,7]
[380877224,1755883762466,-196.484017,0.0002704,7]
[380877225,1755883762491,-151.0,0.0002704,7]
[380877226,1755883762516,-151.0,0.0002704,7]
[380877227,1755883762542,-151.0,0.0002704,7]
[380877228,1755883762567,-152.403116,0.0002704,7]
[380877229,1755883762591,-151.0,0.0002704,7]
[380877230,1755883762615,-151.0,0.0002704,7]
[380877231,1755883762640,-151.0,0.0002704,7]
[380877232,1755883762663,-151.0,0.0002704,7]
[380877233,1755883762691,-151.0,0.0002704,7]
[380877234,1755883762714,-151.0,0.0002704,7]
[380877235,1755883762738,-151.0,0.0002704,7]
[380877236,1755883762763,-151.0,0.0002704,7]
[380877237,1755883762787,-151.915607,0.0002704,7]
[380877238,1755883762811,-151.0,0.0002704,7]
[380877239,1755883762834,-151.0,0.0002704,7]
[380877240,1755883762858,-151.0,0.0002704,7]
[380877241,1755883762883,-153.401174,0.0002704,7]
[380877242,1755883762906,-151.0,0.0002704,7]
[380877243,1755883762932,-151.0,0.0002704,7]
[380877244,1755883763019,-202.372137,0.0002704,7]
[380877245,1755883763044,-202.372137,0.0002704,7]
[380877246,1755883763070,-202.372137,0.0002704,7]
[380877247,1755883763096,-202.372137,0.0002704,7]
[380877248,1755883763122,-202.372137,0.0002704,7]
[380877249,1755883763147,-202.372137,0.0002704,7]
[380877250,1755883763174,-202.372137,0.0002704,7]
[380877251,1755883763199,-202.372137,0.0002704,7]
[380877252,1755883763225,-274.808735,0.0002704,7]
[380877253,1755883763250,-151.0,0.0002704,7]
[380877254,1755883763275,-151.0,0.0002704,7]
[380877255,1755883763301,-151.0,0.0002704,7]
[380877256,1755883763329,-151.0,0.0002704,7]
[380877257,1755883763353,-151.0,0.0002704,7]
[380877258,1755883763378,-232.32572668,0.0002704,7]
[380877259,1755883763403,-151.0,0.0002704,7]
[380877260,1755883763430,-151.0,0.0002704,7]
[380877261,1755883763455,-207.7392,0.0002704,7]
[380877262,1755883763484,-207.7392,0.0002704,7]
[380877263,1755883763509,-160.0,0.0002704,7]
[380877264,1755883763534,-207.7392,0.0002704,7]
[380877265,1755883763562,-207.7392,0.0002704,7]
[380877266,1755883763587,-207.7392,0.0002704,7]
[380877267,1755883763613,-207.7392,0.0002704,7]
[380877268,1755883763641,-207.7392,0.0002704,7]
[380877269,1755883763671,-207.7392,0.0002704,7]
[380877270,1755883763699,-844.33851978,0.0002704,7]
[380877271,1755883763726,-160.0,0.0002704,7]
[380877272,1755883763754,-151.0,0.0002704,7]
[380877273,1755883763780,-151.0,0.0002704,7]
[380877274,1755883763804,-151.0,0.0002704,7]
[380877275,1755883763829,-151.0,0.0002704,7]
[380877276,1755883763854,-151.0,0.0002704,7]
[380877277,1755883763879,-151.0,0.0002704,7]
[380877278,1755883763903,-151.0,0.0002704,7]
[380877279,1755883763997,-376.07413479,0.0002704,7]
[380877280,1755883764022,-151.0,0.0002704,7]
[380877281,1755883764045,-151.0,0.0002704,7]
[380877282,1755883764069,-151.0,0.0002704,7]
[380877283,1755883764092,-151.0,0.0002704,7]
[380877284,1755883764116,-151.0,0.0002704,7]
[380877285,1755883764139,-196.3,0.0002704,7]
[380877286,1755883764163,-151.0,0.0002704,7]
[380877287,1755883764189,-160.0,0.0002704,7]
[380877288,1755883764214,-166.537579,0.0002704,7]
[380877289,1755883764239,-166.537579,0.0002704,7]
[380877290,1755883764263,-166.537579,0.0002704,7]
[380877291,1755883764288,-166.537579,0.0002704,7]
[380877292,1755883764311,-160.0,0.0002704,7]
[380877293,1755883764335,-160.0,0.0002704,7]
[380877294,1755883764359,-216.99125601,0.0002704,7]
[380877295,1755883764385,-215.90555669,0.0002704,7]
[380877296,1755883764428,-151.0,0.0002704,7]
[380877297,1755883764485,-151.0,0.0002704,7]
[380877298,1755883764531,-151.0,0.0002704,7]
[380877299,1755883764576,-178.254462,0.0002704,7]
[380877300,1755883764618,-151.0,0.0002704,7]
[380877301,1755883764661,-178.254462,0.0002704,7]
[380877302,1755883764699,-178.254462,0.0002704,7]
[380877303,1755883764738,-178.254462,0.0002704,7]
[380877304,1755883764775,-151.0,0.0002704,7]
[380877305,1755883764813,-151.0,0.0002704,7]
[380877306,1755883764853,-12692.97277622,0.0002704,7]
[380877307,1755883764892,-151.0,0.0002704,7]
[380877308,1755883764932,-151.0,0.0002704,7]
[380877309,1755883764970,-207.604508,0.0002704,7]
[380877310,1755883765007,-151.0,0.0002704,7]
[380877311,1755883765045,-207.604508,0.0002704,7]
[380877312,1755883765163,-241.940684,0.0002704,7]
[380877313,1755883765189,-207.604508,0.0002704,7]
[380877314,1755883765214,-207.604508,0.0002704,7]
[380877315,1755883765239,-151.0,0.0002704,7]
[380877316,1755883765262,-151.0,0.0002704,7]
[380877317,1755883765287,-151.0,0.0002704,7]
[380877318,1755883765310,-151.0,0.0002704,7]
[380877319,1755883765333,-201.137502,0.0002704,7]
[380877320,1755883765357,-151.0,0.0002704,7]
[380877321,1755883765381,-151.0,0.0002704,7]
[380877322,1755883765404,-160.0,0.0002704,7]
[380877323,1755883765430,-151.0,0.0002704,7]
[380877324,1755883765455,-3000.0,0.0002705,2]
[380877325,1755883765482,-151.707149,0.0002705,7]
[380877326,1755883765506,-151.0,0.0002705,7]
[380877327,1755883765532,-151.0,0.0002705,7]
[380877328,1755883765558,-151.0,0.0002705,7]
[380877329,1755883765582,-151.0,0.0002705,7]
[380877330,1755883765606,-151.0,0.0002705,7]
[380877331,1755883765629,-151.117125,0.0002705,7]
[380877332,1755883765653,-151.0,0.0002705,7]
[380877333,1755883765680,-151.0,0.0002705,7]
[380877334,1755883765704,-151.0,0.0002705,7]
[380877335,1755883765728,-151.0,0.0002705,7]
[380877336,1755883765752,-151.0,0.0002705,7]
[380877337,1755883765776,-179.779616,0.0002705,7]
[380877338,1755883765800,-152.927246,0.0002705,7]
[380877339,1755883765824,-151.0,0.0002705,7]
[380877340,1755883765847,-194.820171,0.0002705,7]
[380877341,1755883765871,-151.0,0.0002705,7]
[380877342,1755883765895,-151.0,0.0002705,7]
[380877343,1755883765920,-151.0,0.0002705,7]
[380877344,1755883765944,-152.795762,0.0002705,7]
[380877345,1755883765970,-151.0,0.0002705,7]
[380877346,1755883765994,-195.728018,0.0002705,7]
[380877347,1755883766085,-152.8467,0.0002705,7]
[380877348,1755883766110,-151.0,0.0002705,7]
[380877349,1755883766135,-202.372137,0.0002705,7]
[380877350,1755883766161,-202.372137,0.0002705,7]
[380877351,1755883766187,-202.372137,0.0002705,7]
[380877352,1755883766212,-202.372137,0.0002705,7]
[380877353,1755883766236,-151.0,0.0002705,7]
[380877354,1755883766261,-151.0,0.0002705,7]
[380877355,1755883766285,-151.0,0.0002705,7]
[380877356,1755883766309,-151.0,0.0002705,7]
[380877357,1755883766332,-200.0,0.0002705,7]
[380877358,1755883766356,-200.0,0.0002705,7]
[380877359,1755883766380,-200.0,0.0002705,7]
[380877360,1755883766405,-207.7392,0.0002705,7]
[380877361,1755883766430,-200.0,0.0002705,7]
[380877362,1755883766455,-200.0,0.0002705,7]
[380877363,1755883766483,-207.7392,0.0002705,7]
[380877364,1755883766509,-207.7392,0.0002705,7]
[380877365,1755883766532,-207.7392,0.0002705,7]
[380877366,1755883766557,-3000.0,0.0002706,2]
[380877367,1755883766581,-3000.0,0.0002707,2]
[380877368,1755883766605,-360.27169985,0.00027073,2]
[380877369,1755883766629,-500.0,0.00027073,2]
[380877370,1755883766654,-502.10486458,0.00027073,2]
[380877371,1755883766682,-500.0,0.00027073,2]
[380877372,1755883766706,-500.0,0.00027073,2]
[380877373,1755883766729,-500.0,0.00027073,2]
[380877374,1755883766753,-500.0,0.00027073,2]
[380877375,1755883766776,-500.0,0.00027073,2]
[380877376,1755883766801,-500.0,0.00027073,2]
[380877377,1755883766824,-500.0,0.00027073,2]
[380877378,1755883766847,-500.0,0.00027073,2]
[380877379,1755883766871,-500.0,0.00027073,2]
[380877380,1755883766895,-500.0,0.00027073,2]
[380877381,1755883766921,-500.0,0.00027073,2]
[380877382,1755883766945,-500.0,0.00027073,2]
[380877383,1755883766969,-500.0,0.00027073,2]
[380877384,1755883766992,-500.0,0.00027073,2]
[380877385,1755883767018,-500.0,0.00027073,2]
[380877386,1755883767041,-500.0,0.00027073,2]
[380877387,1755883767066,-500.0,0.00027073,2]
[380877388,1755883767091,-500.0,0.00027073,2]
[380877389,1755883767115,-501.47743025,0.00027073,2]
[380877390,1755883767140,-500.0,0.00027073,2]
[380877391,1755883767165,-500.0,0.00027073,2]
[380877392,1755883767190,-500.0,0.00027073,2]
[380877393,1755883767214,-500.0,0.00027073,2]
[380877394,1755883767238,-339.65981581,0.00027073,2]
[380877395,1755883767334,-500.0,0.00027073,2]
[380877396,1755883767358,-174.90361075,0.00027073,2]
[380877397,1755883767382,-500.0,0.00027073,2]
[380877398,1755883767406,-521.94377014,0.00027073,2]
[380877399,1755883767433,-500.0,0.00027073,2]
[380877400,1755883767457,-500.0,0.00027073,2]
[380877401,1755883767485,-1000.0,0.00027073,2]
[380877402,1755883767511,-500.0,0.00027073,2]
[380877403,1755883767535,-500.0,0.00027073,2]
[380877404,1755883767560,-500.0,0.00027073,2]
[380877405,1755883767584,-150.0,0.00027073,2]
[380877406,1755883767607,-500.0,0.00027073,2]
[380877407,1755883767632,-1000.0,0.00027073,2]
[380877408,1755883767656,-500.0,0.00027073,2]
[380877409,1755883767683,-517.26454998,0.00027073,2]
[380877410,1755883767709,-500.0,0.00027073,2]
[380877411,1755883767732,-574.85528209,0.00027073,2]
[380877412,1755883767756,-500.0,0.00027073,2]
[380877413,1755883767780,-500.0,0.00027073,2]
[380877414,1755883767804,-501.30889282,0.00027073,2]
[380877415,1755883767827,-151.0,0.00027073,7]
[380877416,1755883767851,-254.861848,0.00027073,7]
[380877417,1755883767876,-151.0,0.00027073,7]
[380877418,1755883767900,-151.0,0.00027073,7]
[380877419,1755883767940,-151.0,0.00027073,7]
[380877420,1755883767981,-151.0,0.00027073,7]
[380877421,1755883768020,-151.0,0.00027073,7]
[380877422,1755883768057,-151.0,0.00027073,7]
[380877423,1755883768095,-151.0,0.00027073,7]
[380877424,1755883768135,-166.537579,0.00027073,7]
[380877425,1755883768172,-166.537579,0.00027073,7]
[380877426,1755883768206,-166.537579,0.00027073,7]
[380877427,1755883768241,-166.537579,0.00027073,7]
[380877428,1755883768279,-151.0,0.00027073,7]
[380877429,1755883768316,-151.0,0.00027073,7]
[380877430,1755883768351,-178.254462,0.00027073,7]
[380877431,1755883768386,-151.0,0.00027073,7]
[380877432,1755883768420,-178.254462,0.00027073,7]
[380877433,1755883768460,-178.254462,0.00027073,7]
[380877434,1755883768500,-178.254462,0.00027073,7]
[380877435,1755883768533,-151.0,0.00027073,7]
[380877436,1755883768566,-151.0,0.00027073,7]
[380877437,1755883768597,-151.0,0.00027073,7]
[380877438,1755883768629,-151.0,0.00027073,7]
[380877439,1755883768661,-207.604508,0.00027073,7]
[380877440,1755883768694,-151.0,0.00027073,7]
[380877441,1755883768727,-207.604508,0.00027073,7]
[380877442,1755883768762,-207.604508,0.00027073,7]
[380877443,1755883768797,-207.604508,0.00027073,7]
[380877444,1755883768833,-151.0,0.00027073,7]
[380877445,1755883768867,-217.204817,0.00027073,7]
[380877446,1755883768892,-3000.0,0.0002708,2]
[380877447,1755883768918,-3000.0,0.0002709,2]
[380877448,1755883769024,-160.0,0.00027099,2]
[380877449,1755883769056,-3000.0,0.000271,2]
[380877450,1755883769081,-43983.42,0.000271,2]
[380877451,1755883769106,-6118.95,0.000271,7]
[380877452,1755883769130,-151.0,0.000271,7]
[380877453,1755883769154,-151.0,0.000271,7]
[380877454,1755883769180,-151.0,0.000271,7]
[380877455,1755883769205,-151.0,0.000271,12]
[380877456,1755883769230,-151.0,0.000271,15]
[380877457,1755883769255,-151.0,0.000271,15]
[380877458,1755883769280,-151.0,0.000271,18]
[380877459,1755883769305,-151.0,0.000271,18]
[380877460,1755883769329,-151.0,0.000271,14]
[380877461,1755883769354,-151.0,0.000271,14]
[380877462,1755883769380,-151.0,0.000271,7]
[380877463,1755883769405,-151.0,0.000271,7]
[380877464,1755883769433,-151.0,0.000271,7]
[380877465,1755883769458,-151.0,0.000271,7]
[380877466,1755883769486,-151.0,0.000271,7]
[380877467,1755883769510,-151.0,0.000271,7]
[380877468,1755883769534,-151.0,0.000271,7]
[380877469,1755883769560,-151.0,0.000271,7]
[380877470,1755883769585,-151.0,0.000271,7]
[380877471,1755883769610,-151.0,0.000271,7]
[380877472,1755883769635,-151.0,0.000271,7]
[380877473,1755883769660,-232.99864,0.000271,7]
[380877474,1755883769685,-151.0,0.000271,7]
[380877475,1755883769709,-151.0,0.000271,7]
[380877476,1755883769734,-151.0,0.000271,7]
[380877477,1755883769761,-151.0,0.000271,7]
[380877478,1755883769786,-151.0,0.000271,7]
[380877479,1755883769812,-202.372137,0.000271,7]
[380877480,1755883769843,-202.372137,0.000271,7]
[380877481,1755883769870,-202.372137,0.000271,7]
[380877482,1755883769894,-202.372137,0.000271,7]
[380877483,1755883769918,-151.0,0.000271,7]
[380877484,1755883769944,-151.0,0.000271,7]
[380877485,1755883769968,-151.0,0.000271,7]
[380877486,1755883769992,-152.780753,0.000271,7]
[380877487,1755883770019,-207.7392,0.000271,7]
[380877488,1755883770044,-207.7392,0.000271,7]
[380877489,1755883770067,-207.7392,0.000271,7]
[380877490,1755883770091,-207.7392,0.000271,7]
[380877491,1755883770116,-151.0,0.000271,7]
[380877492,1755883770141,-151.0,0.000271,7]
[380877493,1755883770166,-151.0,0.000271,7]
[380877494,1755883770193,-151.0,0.000271,7]
[380877495,1755883770219,-151.0,0.000271,7]
[380877496,1755883770243,-151.0,0.000271,7]
[380877497,1755883770266,-151.0,0.000271,7]
[380877498,1755883770290,-166.537579,0.000271,7]
[380877499,1755883770314,-166.537579,0.000271,7]
[380877500,1755883770338,-166.537579,0.000271,7]
[380877501,1755883770365,-166.537579,0.000271,7]
[380877502,1755883770390,-151.0,0.000271,7]
[380877503,1755883770416,-151.0,0.000271,7]
[380877504,1755883770442,-178.254462,0.000271,7]
[380877505,1755883770468,-183.277116,0.000271,7]
[380877506,1755883770496,-178.254462,0.000271,7]
[380877507,1755883770522,-178.254462,0.000271,7]
[380877508,1755883770548,-178.254462,0.000271,7]
[380877509,1755883770573,-151.0,0.000271,7]
[380877510,1755883770598,-12692.97277622,0.000271,7]
[380877511,1755883770706,-151.0,0.000271,7]
[380877512,1755883770733,-151.0,0.000271,7]
[380877513,1755883770758,-207.604508,0.000271,7]
[380877514,1755883770783,-151.0,0.000271,7]
[380877515,1755883770807,-207.604508,0.000271,7]
[380877516,1755883770832,-207.604508,0.000271,7]
[380877517,1755883770858,-207.604508,0.000271,7]
[380877518,1755883770882,-3000.0,0.0002711,2]
[380877519,1755883770908,-3000.0,0.0002712,2]
[380877520,1755883770956,-3000.0,0.0002713,2]
[380877521,1755883770991,-3000.0,0.0002714,2]
[380877522,1755883771015,-3000.0,0.0002715,2]
[380877523,1755883771039,-3000.0,0.0002716,2]
[380877524,1755883771063,-500.0,0.00027168,2]
[380877525,1755883771087,-3511.49319,0.0002717,2]
[380877526,1755883771111,-1500.0,0.00027177,2]
[380877527,1755883771134,-1000.0,0.00027194,2]
[380877528,1755883771159,-151.0,0.000272,10]
[380877529,1755883771186,-1680.0,0.00027205,2]
[380877530,1755883771210,-3634.19416539,0.00027227,2]
[380877531,1755883771234,-151.0,0.00027257,2]
[380877532,1755883771264,-500.0,0.00027257,2]
[380877533,1755883771295,-151.0,0.00027257,2]
[380877534,1755883771319,-152.10104815,0.00027257,2]
[380877535,1755883771344,-500.0,0.00027257,2]
[380877536,1755883771368,-500.0,0.00027257,2]
[380877537,1755883771392,-605.29105189,0.00027257,2]
[380877538,1755883771416,-500.0,0.00027257,2]
[380877539,1755883771442,-200.2887846,0.00027257,2]
[380877540,1755883771466,-264.62832098,0.00027257,2]
[380877541,1755883771493,-151.00050573,0.00027257,2]
[380877542,1755883771518,-500.0,0.00027257,2]
[380877543,1755883771542,-508.78614513,0.00027257,2]
[380877544,1755883771568,-151.0,0.000273,20]
[380877545,1755883771593,-151.177441,0.000273,20]
[380877546,1755883771617,-151.0,0.00027314,2]
[380877547,1755883771640,-151.0,0.00027314,2]
[380877548,1755883771664,-151.177441,0.00027327,20]
[380877549,1755883771690,-151.177441,0.00027354,20]
[380877550,1755883771715,-151.177441,0.00027375,2]
[380877551,1755883771739,-151.177441,0.00027381,20]
[380877552,1755883771763,-500.0,0.00027397,5]
[380877553,1755883771788,-151.177441,0.00027408,20]
[380877554,1755883771812,-1000.0,0.00027421,5]
[380877555,1755883771837,-500.0,0.00027421,5]
[380877556,1755883771861,-151.177441,0.0002747,7]
[380877557,1755883771885,-151.0,0.000275,15]
[380877558,1755883771910,-151.177441,0.00027515,60]
[380877559,1755883771936,-501.26524356,0.00027521,5]
[380877560,1755883771959,-501.40269832,0.00027521,5]
[380877561,1755883771984,-1000.0,0.00027521,5]
[380877562,1755883772008,-706.90087136,0.00027521,5]
[380877563,1755883772032,-503.97999172,0.00027521,5]
[380877564,1755883772056,-1000.0,0.00027521,5]
[380877565,1755883772080,-949.36891552,0.00027521,5]
[380877566,1755883772104,-1001.01715711,0.00027521,5]
[380877567,1755883772128,-1000.0,0.00027521,5]
[380877568,1755883772153,-1000.0,0.00027521,5]
[380877569,1755883772180,-1000.0,0.00027521,5]
[380877570,1755883772204,-1000.0,0.00027521,5]
[380877571,1755883772229,-151.0,0.00027521,7]
[380877572,1755883772255,-300.498874,0.00027521,7]
[380877573,1755883772281,-151.0,0.00027521,7]
[380877574,1755883772306,-207.604508,0.00027521,7]
[380877575,1755883772332,-282.283536,0.00027521,7]
[380877576,1755883772359,-207.604508,0.00027521,7]
[380877577,1755883772387,-207.604508,0.00027521,7]
[380877578,1755883772413,-207.604515,0.00027521,7]
[380877579,1755883772439,-151.0,0.00027531,2]
[380877580,1755883772465,-500.0,0.00027531,2]
[380877581,1755883772493,-500.0,0.00027531,2]
[380877582,1755883772518,-500.0,0.00027531,2]
[380877583,1755883772545,-500.0,0.00027531,2]
[380877584,1755883772570,-453.0,0.00027531,2]
[380877585,1755883772595,-1000.0,0.00027542,5]
[380877586,1755883772620,-151.0,0.00027542,7]
[380877587,1755883772645,-151.0,0.00027542,7]
[380877588,1755883772669,-151.0,0.00027542,7]
[380877589,1755883772695,-166.537579,0.00027542,7]
[380877590,1755883772720,-166.537579,0.00027542,7]
[380877591,1755883772745,-166.537579,0.00027542,7]
[380877592,1755883772769,-166.537582,0.00027542,7]
[380877593,1755883772794,-151.0,0.00027542,7]
[380877594,1755883772818,-151.0,0.00027542,7]
[380877595,1755883772844,-178.254462,0.00027542,7]
[380877596,1755883772871,-178.254462,0.00027542,7]
[380877597,1755883772981,-178.254462,0.00027542,7]
[380877598,1755883773026,-178.254462,0.00027542,7]
[380877599,1755883773052,-500.0,0.00027567,2]
[380877600,1755883773078,-202.372137,0.00027577,7]
[380877601,1755883773103,-202.372137,0.00027577,7]
[380877602,1755883773129,-202.372137,0.00027577,7]
[380877603,1755883773155,-202.3721336,0.00027577,7]
[380877604,1755883773183,-151.0,0.00027577,7]
[380877605,1755883773213,-151.0,0.00027577,7]
[380877606,1755883773239,-207.7392,0.00027577,7]
[380877607,1755883773266,-207.7392,0.00027577,7]
[380877608,1755883773292,-207.7392,0.00027577,7]
[380877609,1755883773318,-207.7392,0.00027577,7]
[380877610,1755883773344,-151.0,0.00027577,7]
[380877611,1755883773369,-376.07413479,0.00027577,7]
[380877612,1755883773395,-160.0,0.00027577,7]
[380877613,1755883773420,-160.0,0.00027577,7]
[380877614,1755883773448,-3634.19416539,0.00027582,2]
[380877615,1755883773476,-245.0,0.00027588,2]
[380877616,1755883773503,-151.0,0.000276,14]
[380877617,1755883773529,-500.0,0.00027607,2]
[380877618,1755883773555,-151.0,0.00027615,7]
[380877619,1755883773580,-151.0,0.00027615,7]
[380877620,1755883773606,-151.0,0.00027615,7]
[380877621,1755883773632,-151.0,0.00027615,7]